fUSD/lending_fUSD_20260524
["ID","MTS","AMOUNT","RATE_DAILY","PERIOD"]
[422903273,1779598041000,256.62,0.00027397,120]
[422903274,1779598140000,1000.0,0.0002808,120]
[422903381,1779598232000,-153.74,0.00018081,2]
[422903299,1779598232000,-500.0,0.00013698,2]
[422903302,1779598232000,-500.0,0.00013698,2]
[422903304,1779598232000,-500.0,0.00013698,2]
[422903306,1779598232000,-778.21,0.00013698,2]
[422903307,1779598232000,-153.74,0.00014275,2]
[422903309,1779598232000,-289.52115385,0.00014999,2]
[422903308,1779598232000,-213.73427874,0.00014481,2]
[422903310,1779598232000,-289.52115385,0.00014999,2]
[422903316,1779598232000,-500.0,0.00014999,2]
[422903315,1779598232000,-500.0,0.00014999,2]
[422903314,1779598232000,-475.94935102,0.00014999,2]
[422903311,1779598232000,-297.04094794,0.00014999,2]
[422903313,1779598232000,-24.05064898,0.00014999,2]
[422903312,1779598232000,-291.37744795,0.00014999,2]
[422903317,1779598232000,-187.73618338,0.00014999,2]
[422903319,1779598232000,-500.0,0.00014999,2]
[422903318,1779598232000,-312.26381662,0.00014999,2]
[422903320,1779598232000,-500.0,0.00014999,2]
[422903322,1779598232000,-500.0,0.00014999,2]
[422903323,1779598232000,-500.0,0.00014999,2]
[422903321,1779598232000,-500.0,0.00014999,2]
[422903324,1779598232000,-500.0,0.00014999,2]
[422903325,1779598232000,-500.0,0.00014999,2]
[422903298,1779598232000,-80.02246562,0.00013698,2]
[422903326,1779598232000,-500.0,0.00014999,2]
[422903303,1779598232000,-500.0,0.00013698,2]
[422903297,1779598232000,-419.97753438,0.00013698,2]
[422903379,1779598232000,-778.21,0.00017899,2]
[422903276,1779598232000,-153.74,9.516e-05,2]
[422903277,1779598232000,-197.28307539,0.00010468,2]
[422903278,1779598232000,-491.0360497,0.00010468,2]
[422903280,1779598232000,-119.7329446,0.00010468,2]
[422903281,1779598232000,-43.7470554,0.00010468,2]
[422903279,1779598232000,-238.14856722,0.00010468,2]
[422903282,1779598232000,-153.74,0.00010468,2]
[422903283,1779598232000,-153.74,0.0001142,2]
[422903286,1779598232000,-153.74,0.00013323,2]
[422903285,1779598232000,-197.63661849,0.00013223,2]
[422903289,1779598232000,-177.09795929,0.00013697,2]
[422903291,1779598232000,-7.58541903,0.00013698,2]
[422903290,1779598232000,-1200.0,0.00013697,2]
[422903288,1779598232000,-285.90204071,0.00013697,2]
[422903284,1779598232000,-153.74,0.00012371,2]
[422903287,1779598232000,-150.0,0.00013697,2]
[422903292,1779598232000,-492.41458097,0.00013698,2]
[422903293,1779598232000,-500.0,0.00013698,2]
[422903295,1779598232000,-500.0,0.00013698,2]
[422903296,1779598232000,-500.0,0.00013698,2]
[422903294,1779598232000,-500.0,0.00013698,2]
[422903305,1779598232000,-778.21,0.00013698,2]
[422903300,1779598232000,-500.0,0.00013698,2]
[422903327,1779598232000,-500.0,0.00014999,2]
[422903301,1779598232000,-500.0,0.00013698,2]
[422903329,1779598232000,-219.22529403,0.00014999,2]
[422903356,1779598232000,-778.21,0.00014999,2]
[422903357,1779598232000,-778.21,0.00014999,2]
[422903359,1779598232000,-778.21,0.00014999,2]
[422903360,1779598232000,-778.21,0.00014999,2]
[422903361,1779598232000,-778.21,0.00014999,2]
[422903358,1779598232000,-778.21,0.00014999,2]
[422903363,1779598232000,-778.21,0.00014999,2]
[422903365,1779598232000,-1200.0,0.00015067,2]
[422903364,1779598232000,-215.34753388,0.00015063,2]
[422903366,1779598232000,-153.74,0.00015226,2]
[422903371,1779598232000,-1612.69,0.00016922,2]
[422903369,1779598232000,-166.98,0.00016734,2]
[422903368,1779598232000,-1832.9781872,0.00016438,2]
[422903374,1779598232000,-166.98,0.00017615,2]
[422903372,1779598232000,-153.74,0.0001713,2]
[422903373,1779598232000,-166.98,0.00017175,2]
[422903370,1779598232000,-2500.0,0.00016806,2]
[422903375,1779598232000,-206.16,0.00017788,2]
[422903377,1779598232000,-200.0,0.00017863,2]
[422903376,1779598232000,-169.17,0.00017789,2]
[422903380,1779598232000,-166.98,0.00018056,2]
[422903328,1779598232000,-280.77470597,0.00014999,2]
[422903378,1779598232000,-500.0,0.00017899,2]
[422903362,1779598232000,-778.21,0.00014999,2]
[422903355,1779598232000,-778.21,0.00014999,2]
[422903367,1779598232000,-153.74,0.00016178,2]
[422903337,1779598232000,-89.7009296,0.00014999,2]
[422903331,1779598232000,-250.46934122,0.00014999,2]
[422903354,1779598232000,-778.21,0.00014999,2]
[422903333,1779598232000,-500.0,0.00014999,2]
[422903334,1779598232000,-454.91335304,0.00014999,2]
[422903332,1779598232000,-500.0,0.00014999,2]
[422903336,1779598232000,-500.0,0.00014999,2]
[422903335,1779598232000,-304.068022,0.00014999,2]
[422903349,1779598232000,-500.0,0.00014999,2]
[422903339,1779598232000,-500.0,0.00014999,2]
[422903341,1779598232000,-500.0,0.00014999,2]
[422903340,1779598232000,-500.0,0.00014999,2]
[422903342,1779598232000,-500.0,0.00014999,2]
[422903338,1779598232000,-410.2990704,0.00014999,2]
[422903353,1779598232000,-511.83847665,0.00014999,2]
[422903351,1779598232000,-500.0,0.00014999,2]
[422903352,1779598232000,-500.0,0.00014999,2]
[422903350,1779598232000,-500.0,0.00014999,2]
[422903330,1779598232000,-249.53065878,0.00014999,2]
[422903344,1779598232000,-500.0,0.00014999,2]
[422903346,1779598232000,-500.0,0.00014999,2]
[422903343,1779598232000,-500.0,0.00014999,2]
[422903348,1779598232000,-500.0,0.00014999,2]
[422903345,1779598232000,-500.0,0.00014999,2]
[422903347,1779598232000,-500.0,0.00014999,2]
[422903419,1779598233000,-500.0,0.00019944,2]
[422903418,1779598233000,-500.0,0.00019944,2]
[422903414,1779598233000,-500.0,0.00019944,2]
[422903416,1779598233000,-500.0,0.00019944,2]
[422903417,1779598233000,-500.0,0.00019944,2]
[422903444,1779598233000,-500.0,0.0002,2]
[422903413,1779598233000,-500.0,0.00019944,2]
[422903411,1779598233000,-500.0,0.00019944,2]
[422903412,1779598233000,-500.0,0.00019944,2]
[422903421,1779598233000,-778.21,0.00019944,2]
[422903415,1779598233000,-500.0,0.00019944,2]
[422903423,1779598233000,-778.21,0.00019944,2]
[422903433,1779598233000,-735.0,0.0002,2]
[422903424,1779598233000,-778.21,0.00019944,2]
[422903425,1779598233000,-778.21,0.00019944,2]
[422903426,1779598233000,-778.21,0.00019944,2]
[422903427,1779598233000,-778.21,0.00019944,2]
[422903428,1779598233000,-778.21,0.00019944,2]
[422903431,1779598233000,-285.68,0.00019968,2]
[422903429,1779598233000,-778.27862633,0.00019944,2]
[422903430,1779598233000,-500.0,0.00019949,2]
[422903432,1779598233000,-218.0,0.0002,2]
[422903434,1779598233000,-155.0,0.0002,2]
[422903435,1779598233000,-360.0,0.0002,2]
[422903420,1779598233000,-778.21,0.00019944,2]
[422903422,1779598233000,-778.21,0.00019944,2]
[422903409,1779598233000,-1865.36488656,0.00019806,2]
[422903382,1779598233000,-206.16,0.00018232,2]
[422903404,1779598233000,-162.89,0.00019394,2]
[422903436,1779598233000,-168.0,0.0002,2]
[422903387,1779598233000,-1331.39,0.0001872,2]
[422903388,1779598233000,-568.07,0.0001872,2]
[422903384,1779598233000,-166.98,0.00018496,2]
[422903383,1779598233000,-691.4,0.0001841,2]
[422903385,1779598233000,-14021.39,0.00018533,2]
[422903386,1779598233000,-206.16,0.00018677,2]
[422903389,1779598233000,-19313.41,0.0001872,2]
[422903390,1779598233000,-153.74,0.00019033,2]
[422903391,1779598233000,-206.16,0.00019122,2]
[422903393,1779598233000,-151.0,0.00019258,2]
[422903392,1779598233000,-200.0,0.00019258,2]
[422903410,1779598233000,-7936.60977498,0.00019844,2]
[422903396,1779598233000,-151.0,0.00019258,2]
[422903394,1779598233000,-1798.80895522,0.00019258,2]
[422903397,1779598233000,-151.0,0.00019258,2]
[422903399,1779598233000,-151.0,0.00019258,2]
[422903400,1779598233000,-151.0,0.00019258,2]
[422903401,1779598233000,-219.79815383,0.00019258,2]
[422903407,1779598233000,-200.0,0.00019806,2]
[422903405,1779598233000,-206.16,0.00019566,2]
[422903402,1779598233000,-778.21,0.00019294,2]
[422903403,1779598233000,-5877.57,0.00019324,2]
[422903406,1779598233000,-165.96,0.00019739,2]
[422903408,1779598233000,-255.29299349,0.00019806,2]
[422903398,1779598233000,-151.0,0.00019258,2]
[422903395,1779598233000,-151.0,0.00019258,2]
[422903438,1779598233000,-500.0,0.0002,2]
[422903472,1779598233000,-518.82597518,0.000207,2]
[422903439,1779598233000,-500.0,0.0002,2]
[422903473,1779598233000,-600.0,0.000207,7]
[422903474,1779598233000,-178.02,0.00020737,2]
[422903475,1779598233000,-152.0,0.00020742,7]
[422903479,1779598233000,-500.0,0.00020899,2]
[422903478,1779598233000,-500.0,0.00020899,2]
[422903477,1779598233000,-263.45247351,0.00020899,2]
[422903476,1779598233000,-800.0,0.000208,7]
[422903480,1779598233000,-500.0,0.00020899,2]
[422903470,1779598233000,-2932.54534536,0.000207,2]
[422903481,1779598233000,-500.0,0.00020899,2]
[422903483,1779598233000,-490.87655751,0.00020899,2]
[422903482,1779598233000,-500.0,0.00020899,2]
[422903471,1779598233000,-1535.06690997,0.000207,2]
[422903484,1779598233000,-500.0,0.00020899,2]
[422903486,1779598233000,-500.0,0.00020899,2]
[422903488,1779598233000,-500.0,0.00020899,2]
[422903490,1779598233000,-1535.06690997,0.000209,2]
[422903440,1779598233000,-500.0,0.0002,2]
[422903487,1779598233000,-500.0,0.00020899,2]
[422903491,1779598233000,-518.82597518,0.000209,2]
[422903492,1779598233000,-1100.0,0.000209,7]
[422903493,1779598233000,-200.0,0.00020902,2]
[422903495,1779598233000,-2500.0,0.00020973,2]
[422903496,1779598233000,-218.0,0.00021,2]
[422903494,1779598233000,-2005.9555727,0.00020902,2]
[422903497,1779598233000,-735.0,0.00021,2]
[422903485,1779598233000,-500.0,0.00020899,2]
[422903469,1779598233000,-7936.6097749,0.00020672,2]
[422903489,1779598233000,-2932.54534536,0.000209,2]
[422903466,1779598233000,-150.0,0.0002058,2]
[422903465,1779598233000,-150.0,0.0002058,2]
[422903437,1779598233000,-387.0,0.0002,2]
[422903443,1779598233000,-500.0,0.0002,2]
[422903441,1779598233000,-500.0,0.0002,2]
[422903442,1779598233000,-500.0,0.0002,2]
[422903445,1779598233000,-500.0,0.0002,2]
[422903448,1779598233000,-242.0,0.0002,2]
[422903451,1779598233000,-176.04808047,0.0002,2]
[422903449,1779598233000,-154.0,0.0002,2]
[422903452,1779598233000,-176.04808047,0.0002,2]
[422903457,1779598233000,-1934.38338736,0.00020354,2]
[422903456,1779598233000,-200.0,0.00020354,2]
[422903447,1779598233000,-500.0,0.0002,2]
[422903446,1779598233000,-500.0,0.0002,2]
[422903450,1779598233000,-176.04808047,0.0002,2]
[422903467,1779598233000,-400.0,0.000206,7]
[422903453,1779598233000,-176.04808047,0.0002,2]
[422903468,1779598233000,-169.48,0.00020662,2]
[422903463,1779598233000,-150.0,0.0002058,2]
[422903458,1779598233000,-691.4,0.00020381,2]
[422903464,1779598233000,-150.0,0.0002058,2]
[422903460,1779598233000,-2000.0,0.0002039,2]
[422903462,1779598233000,-150.0,0.0002058,2]
[422903459,1779598233000,-500.0,0.0002039,2]
[422903455,1779598233000,-1760.42,0.0002,2]
[422903454,1779598233000,-176.0480805,0.0002,2]
[422903461,1779598233000,-200.0,0.000205,7]
[422903517,1779598234000,-500.0,0.00021099,2]
[422903531,1779598234000,-457.9767215,0.00021099,2]
[422903521,1779598234000,-500.0,0.00021099,2]
[422903532,1779598234000,-512.90149944,0.00021099,2]
[422903533,1779598234000,-508.72140092,0.00021099,2]
[422903525,1779598234000,-500.0,0.00021099,2]
[422903523,1779598234000,-500.0,0.00021099,2]
[422903520,1779598234000,-500.0,0.00021099,2]
[422903529,1779598234000,-500.0,0.00021099,2]
[422903522,1779598234000,-500.0,0.00021099,2]
[422903528,1779598234000,-500.0,0.00021099,2]
[422903527,1779598234000,-500.0,0.00021099,2]
[422903530,1779598234000,-500.0,0.00021099,2]
[422903534,1779598234000,-500.0,0.00021099,2]
[422903535,1779598234000,-500.0,0.00021099,2]
[422903515,1779598234000,-500.0,0.00021099,2]
[422903526,1779598234000,-500.0,0.00021099,2]
[422903516,1779598234000,-500.0,0.00021099,2]
[422903502,1779598234000,-154.0,0.00021,2]
[422903514,1779598234000,-500.0,0.00021099,2]
[422903545,1779598234000,-382.70393137,0.00021099,2]
[422903505,1779598234000,-156.90035272,0.0002109,2]
[422903506,1779598234000,-500.0,0.00021098,2]
[422903498,1779598234000,-155.0,0.00021,2]
[422903501,1779598234000,-242.0,0.00021,2]
[422903500,1779598234000,-387.0,0.00021,2]
[422903504,1779598234000,-429.81530452,0.00021073,2]
[422903499,1779598234000,-360.0,0.00021,2]
[422903503,1779598234000,-262.02436545,0.00021,2]
[422903507,1779598234000,-418.09901211,0.00021099,2]
[422903519,1779598234000,-500.0,0.00021099,2]
[422903510,1779598234000,-188.89155524,0.00021099,2]
[422903508,1779598234000,-475.36234624,0.00021099,2]
[422903509,1779598234000,-180.51734667,0.00021099,2]
[422903511,1779598234000,-500.0,0.00021099,2]
[422903518,1779598234000,-500.0,0.00021099,2]
[422903512,1779598234000,-500.0,0.00021099,2]
[422903513,1779598234000,-500.0,0.00021099,2]
[422903546,1779598234000,-239.06698286,0.00021099,2]
[422903524,1779598234000,-500.0,0.00021099,2]
[422903538,1779598234000,-500.0,0.00021099,2]
[422903560,1779598234000,-2196.65,0.00021099,2]
[422903561,1779598234000,-2196.65,0.00021099,2]
[422903563,1779598234000,-500.0,0.00021099,2]
[422903562,1779598234000,-500.0,0.00021099,2]
[422903564,1779598234000,-500.0,0.00021099,2]
[422903568,1779598234000,-18549.47963962,0.000211,2]
[422903565,1779598234000,-598.15296991,0.00021099,2]
[422903566,1779598234000,-507.94558638,0.00021099,2]
[422903569,1779598234000,-56154.17543544,0.000211,2]
[422903570,1779598234000,-1254.41808677,0.000211,2]
[422903572,1779598234000,-44.02,0.00020899,2]
[422903571,1779598234000,-500.0,0.00020899,2]
[422903573,1779598234000,-455.98,0.00020899,2]
[422903575,1779598234000,-10769.01433307,0.000211,2]
[422903574,1779598234000,-500.0,0.00020899,2]
[422903577,1779598234000,-586.0641573,0.000211,2]
[422903536,1779598234000,-500.0,0.00021099,2]
[422903555,1779598234000,-2196.65,0.00021099,2]
[422903557,1779598234000,-2196.65,0.00021099,2]
[422903567,1779598234000,-37890.88720246,0.000211,2]
[422903552,1779598234000,-500.0,0.00021099,2]
[422903554,1779598234000,-2196.65,0.00021099,2]
[422903537,1779598234000,-500.0,0.00021099,2]
[422903542,1779598234000,-500.0,0.00021099,2]
[422903543,1779598234000,-500.0,0.00021099,2]
[422903539,1779598234000,-500.0,0.00021099,2]
[422903541,1779598234000,-500.0,0.00021099,2]
[422903540,1779598234000,-500.0,0.00021099,2]
[422903576,1779598234000,-1763.97926805,0.000211,2]
[422903548,1779598234000,-500.0,0.00021099,2]
[422903544,1779598234000,-500.0,0.00021099,2]
[422903547,1779598234000,-500.0,0.00021099,2]
[422903550,1779598234000,-500.0,0.00021099,2]
[422903559,1779598234000,-2196.65,0.00021099,2]
[422903549,1779598234000,-500.0,0.00021099,2]
[422903551,1779598234000,-500.0,0.00021099,2]
[422903558,1779598234000,-2196.65,0.00021099,2]
[422903553,1779598234000,-2196.65,0.00021099,2]
[422903556,1779598234000,-2196.65,0.00021099,2]
[422903593,1779598238000,-199.32190699,0.00020899,2]
[422903596,1779598238000,-500.0,0.00020899,2]
[422903595,1779598238000,-500.0,0.00020899,2]
[422903594,1779598238000,-500.0,0.00020899,2]
[422903599,1779598238000,-500.0,0.00020899,2]
[422903597,1779598238000,-500.0,0.00020899,2]
[422903603,1779598238000,-500.0,0.00020899,2]
[422903592,1779598238000,-500.0,0.00020899,2]
[422903598,1779598238000,-500.0,0.00020899,2]
[422903602,1779598238000,-500.0,0.00020899,2]
[422903587,1779598238000,-392.23153511,0.00020899,2]
[422903601,1779598238000,-490.62545703,0.00020899,2]
[422903600,1779598238000,-9.37454297,0.00020899,2]
[422903590,1779598238000,-500.0,0.00020899,2]
[422903589,1779598238000,-22.05444871,0.00020899,2]
[422903586,1779598238000,-107.76846489,0.00020899,2]
[422903584,1779598238000,-150.0,0.0002058,2]
[422903588,1779598238000,-477.94555129,0.00020899,2]
[422903585,1779598238000,-500.0,0.00020899,2]
[422903606,1779598238000,-500.0,0.00020899,2]
[422903591,1779598238000,-500.0,0.00020899,2]
[422903605,1779598238000,-500.0,0.00020899,2]
[422903607,1779598238000,-500.0,0.00020899,2]
[422903612,1779598238000,-500.0,0.00020899,2]
[422903628,1779598238000,-545.85460464,0.000211,2]
[422903627,1779598238000,-516.70824417,0.000211,2]
[422903624,1779598238000,-5891.50864942,0.000211,2]
[422903622,1779598238000,-500.0,0.00020899,2]
[422903625,1779598238000,-2135.74992329,0.000211,2]
[422903619,1779598238000,-500.0,0.00020899,2]
[422903621,1779598238000,-500.0,0.00020899,2]
[422903617,1779598238000,-500.0,0.00020899,2]
[422903623,1779598238000,-25158.42797706,0.000211,2]
[422903620,1779598238000,-500.0,0.00020899,2]
[422903618,1779598238000,-500.0,0.00020899,2]
[422903626,1779598238000,-9630.62862952,0.000211,2]
[422903616,1779598238000,-500.0,0.00020899,2]
[422903613,1779598238000,-118.88878358,0.00020899,2]
[422903604,1779598238000,-500.0,0.00020899,2]
[422903610,1779598238000,-347.36639798,0.00020899,2]
[422903608,1779598238000,-500.0,0.00020899,2]
[422903609,1779598238000,-152.63360202,0.00020899,2]
[422903611,1779598238000,-500.0,0.00020899,2]
[422903614,1779598238000,-381.11121642,0.00020899,2]
[422903615,1779598238000,-500.0,0.00020899,2]
[422903730,1779598240000,-150.23722778,0.0002058,2]
[422903732,1779598240000,-366.07666003,0.000211,2]
[422903735,1779598240000,-764100.50008922,0.000211,2]
[422903733,1779598240000,-26807.13682928,0.000211,2]
[422903734,1779598240000,-332.11298935,0.000211,2]
[422903731,1779598240000,-918.08413995,0.000211,2]
[422903741,1779598243000,-1031.56590115,0.000211,2]
[422903740,1779598243000,-10337.22398982,0.000211,2]
[422903739,1779598243000,-883.15095705,0.000211,2]
[422903744,1779598246000,-265.59999999,0.000211,2]
[422903746,1779598246000,-658.03402278,0.000211,2]
[422903743,1779598246000,-666.0,0.000211,2]
[422903745,1779598246000,-1131.37,0.000211,2]
[422903747,1779598246000,-122966.69156873,0.000211,2]
[422903749,1779598282000,201.087646,0.000245,120]
[422903750,1779598290000,231.487472,0.000245,120]
[422903751,1779598493000,439.78,0.0002778,120]
[422903754,1779599337000,-71884.0,0.00016,2]
[422903755,1779599341000,1000.0,0.00028079,120]
[422903774,1779599432000,-1680.0,0.00019115,2]
[422903772,1779599432000,-342.0,0.00019021,2]
[422903783,1779599432000,-150.99,0.00019369,2]
[422903781,1779599432000,-9315.05,0.00019369,2]
[422903771,1779599432000,-215.34753388,0.00018437,2]
[422903770,1779599432000,-628.6,0.0001841,2]
[422903782,1779599432000,-5278.19,0.00019369,2]
[422903763,1779599432000,-1734.5754661,0.00016,2]
[422903765,1779599432000,-163.35,0.000174,2]
[422903767,1779599432000,-1200.0,0.00017422,2]
[422903764,1779599432000,-628.6,0.00016438,2]
[422903768,1779599432000,-300.0,0.00017422,2]
[422903766,1779599432000,-300.0,0.00017422,2]
[422903762,1779599432000,-1507.28120465,0.00016,2]
[422903760,1779599432000,-764.04635496,0.00016,2]
[422903758,1779599432000,-2060.33272966,0.00016,2]
[422903759,1779599432000,-735.95364504,0.00016,2]
[422903773,1779599432000,-271.0,0.00019022,2]
[422903769,1779599432000,-1200.0,0.00017423,2]
[422903775,1779599432000,-9528.12770679,0.00019115,2]
[422903761,1779599432000,-444.0,0.00016,2]
[422903780,1779599432000,-3168.53,0.00019115,2]
[422903776,1779599432000,-9526.17229321,0.00019115,2]
[422903799,1779599432000,-292.11283726,0.0002,2]
[422903794,1779599432000,-568.07,0.00019968,2]
[422903792,1779599432000,-255.0,0.00019967,2]
[422903791,1779599432000,-150.0,0.00019892,2]
[422903798,1779599432000,-212.0,0.0002,2]
[422903796,1779599432000,-3978.71808095,0.0001999,2]
[422903795,1779599432000,-19313.41,0.00019968,2]
[422903790,1779599432000,-188.47,0.00019801,2]
[422903793,1779599432000,-1331.39,0.00019968,2]
[422903785,1779599432000,-9999.99,0.00019369,2]
[422903788,1779599432000,-1101.87,0.00019633,2]
[422903787,1779599432000,-852.2793394,0.00019633,2]
[422903786,1779599432000,-147.7206606,0.00019633,2]
[422903789,1779599432000,-200.0,0.00019766,2]
[422903784,1779599432000,-999.99,0.00019369,2]
[422903779,1779599432000,-2131.68,0.00019115,2]
[422903778,1779599432000,-353.24,0.00019115,2]
[422903777,1779599432000,-2208.84,0.00019115,2]
[422903797,1779599432000,-160.33151503,0.0002,2]
[422903820,1779599433000,-368.41311816,0.000208,2]
[422903816,1779599433000,-1041.17007418,0.000207,2]
[422903824,1779599433000,-156.90035272,0.0002089,2]
[422903818,1779599433000,-445.95306326,0.000208,2]
[422903821,1779599433000,-7710.06339907,0.000208,2]
[422903819,1779599433000,-5000.0,0.000208,2]
[422903835,1779599433000,-500.0,0.00020899,2]
[422903826,1779599433000,-500.0,0.00020899,2]
[422903825,1779599433000,-500.0,0.00020899,2]
[422903831,1779599433000,-500.0,0.00020899,2]
[422903833,1779599433000,-500.0,0.00020899,2]
[422903832,1779599433000,-500.0,0.00020899,2]
[422903836,1779599433000,-500.0,0.00020899,2]
[422903822,1779599433000,-2500.0,0.000208,2]
[422903823,1779599433000,-500.0,0.000208,2]
[422903828,1779599433000,-500.0,0.00020899,2]
[422903807,1779599433000,-1257.0,0.0002,2]
[422903817,1779599433000,-400.0315239,0.000207,2]
[422903800,1779599433000,-424.88716274,0.0002,2]
[422903801,1779599433000,-155.0,0.0002,2]
[422903803,1779599433000,-155.0,0.0002,2]
[422903810,1779599433000,-439.78,0.00020203,2]
[422903809,1779599433000,-1272.663,0.00020203,2]
[422903812,1779599433000,-23746.91,0.00020232,2]
[422903806,1779599433000,-168.60438977,0.0002,2]
[422903834,1779599433000,-500.0,0.00020899,2]
[422903804,1779599433000,-366.0,0.0002,2]
[422903814,1779599433000,-350.0,0.00020467,3]
[422903811,1779599433000,-192.09484058,0.00020203,2]
[422903815,1779599433000,-2385.1305602,0.000207,2]
[422903805,1779599433000,-217.0,0.0002,2]
[422903802,1779599433000,-360.0,0.0002,2]
[422903808,1779599433000,-169.48,0.00020137,2]
[422903827,1779599433000,-500.0,0.00020899,2]
[422903840,1779599433000,-500.0,0.00020899,2]
[422903813,1779599433000,-628.6,0.00020381,2]
[422903842,1779599433000,-500.0,0.00020899,2]
[422903880,1779599433000,-332.3196175,0.00020899,2]
[422903882,1779599433000,-500.0,0.00020899,2]
[422903883,1779599433000,-192.7861491,0.00020899,2]
[422903886,1779599433000,-458.6676163,0.00020899,2]
[422903887,1779599433000,-41.3323837,0.00020899,2]
[422903888,1779599433000,-170.61296962,0.00020899,2]
[422903879,1779599433000,-500.0,0.00020899,2]
[422903889,1779599433000,-495.2666421,0.00020899,2]
[422903891,1779599433000,-1041.17007418,0.000209,2]
[422903892,1779599433000,-400.0315239,0.000209,2]
[422903893,1779599433000,-20639.69904542,0.000209,2]
[422903894,1779599433000,-643.82857995,0.000209,2]
[422903895,1779599433000,-720.22605909,0.000209,2]
[422903896,1779599433000,-356.44950306,0.000209,2]
[422903890,1779599433000,-2385.1305602,0.000209,2]
[422903877,1779599433000,-626.46267304,0.00020899,2]
[422903884,1779599433000,-424.48127444,0.00020899,2]
[422903873,1779599433000,-569.9321907,0.00020899,2]
[422903838,1779599433000,-500.0,0.00020899,2]
[422903844,1779599433000,-253.21876247,0.00020899,2]
[422903875,1779599433000,-499.99999999,0.00020899,2]
[422903848,1779599433000,-1372.91,0.00020899,2]
[422903850,1779599433000,-1372.91,0.00020899,2]
[422903852,1779599433000,-1372.91,0.00020899,2]
[422903860,1779599433000,-500.0,0.00020899,2]
[422903864,1779599433000,-500.0,0.00020899,2]
[422903846,1779599433000,-246.78123753,0.00020899,2]
[422903856,1779599433000,-204.84249985,0.00020899,2]
[422903858,1779599433000,-306.30118022,0.00020899,2]
[422903871,1779599433000,-500.0,0.00020899,2]
[422903869,1779599433000,-500.0,0.00020899,2]
[422903830,1779599433000,-500.0,0.00020899,2]
[422903854,1779599433000,-1372.91,0.00020899,2]
[422903862,1779599433000,-500.0,0.00020899,2]
[422903867,1779599433000,-500.0,0.00020899,2]
[422903907,1779599438000,-618.6790189,0.000209,2]
[422903914,1779599438000,-3892.53075856,0.000209,2]
[422903913,1779599438000,-413.32766839,0.000209,2]
[422903911,1779599438000,-2093.68970089,0.000209,2]
[422903910,1779599438000,-418.98263072,0.000209,2]
[422903909,1779599438000,-14078.95110786,0.000209,2]
[422903908,1779599438000,-3554.72065895,0.000209,2]
[422903905,1779599438000,-828.894926,0.000209,2]
[422903906,1779599438000,-1158.67285135,0.000209,2]
[422903904,1779599438000,-154.849205,0.00017313,2]
[422903912,1779599438000,-448.0,0.000209,2]
[422903915,1779599439000,-594.55730486,0.000209,2]
[422903917,1779599439000,-24186.65703,0.000209,2]
[422903916,1779599439000,-496.19290314,0.000209,2]
[422903926,1779599441000,-764100.50008922,0.000209,2]
[422903925,1779599441000,-616.95700799,0.000209,2]
[422903927,1779599441000,-561.22993896,0.000209,2]
[422903938,1779599443000,-375.18789012,0.000209,2]